[Event "7th Cesme Open-A 2019"]
[Site "Cesme"]
[Date "2019.06.25"]
[Round "2"]
[White "Rzayev, Bahruz"]
[Black "Rzayev, Askar Aliakbar"]
[Result "1/2-1/2"]
[ECO "C54"]
[WhiteElo "2340"]
[BlackElo "2089"]
[Annotator "NA"]
[PlyCount "54"]
[EventDate "2019.06.24"]
[EventType "swiss"]
[EventCountry "TUR"]
[SourceTitle "playchess.com"]
[Source "ChessBase"]
[SourceQuality "1"]
[TimeControl "5400+30"]

1. e4 {[%emt 0:00:30]} e5 {[%emt 0:04:30]} 2. Nf3 {[%emt 0:00:30]} Nc6 {[%emt 0:00:00]} 3. Bc4 {[%emt 0:01:30]} Bc5 {[%emt 0:00:00]} 4. c3 {[%emt 0:00:30]} Nf6 {[%emt 0:00:30]} 5. d3 {[%emt 0:00:00]} O-O {[%emt 0:02:30]} 6. b4 {[%emt 0:01:00]} Bb6 {[%emt 0:00:30]} 7. a4 {[%emt 0:00:30]} a6 {[%emt 0:00:30]} 8. O-O {[%emt 0:01:30]} h6 {[%emt 0:06:30]} 9. Re1 {[%emt 0:04:30]} d6 {[%emt 0:00:30]} 10. Be3 {[%emt 0:00:30]} Bxe3 {[%emt 0:00:30]} 11. Rxe3 {[%emt 0:00:30]} Kh8 {[%emt 0:03:30]} 12. Nbd2 {[%emt 0:02:30]} a5 {[%emt 0:07:30]} 13. b5 {[%emt 0:03:30]} Ne7 {[%emt 0:00:00]} 14. Qb3 {[%emt 0:01:30]} Qe8 {[%emt 0:01:00]} 15. d4 {[%emt 0:04:30]} Ng6 {[%emt 0:00:30]} 16. b6 {[%emt 0:03:30]} c6 {[%emt 0:02:30]} 17. Qa3 {[%emt 0:11:30]} Qd8 {[%emt 0:02:30]} 18. Ba2 {[%emt 0:06:30]} exd4 {[%emt 0:11:30]} 19. cxd4 {[%emt 0:05:30]} d5 {[%emt 0:00:30]} 20. exd5 {[%emt 0:05:30]} Nxd5 {[%emt 0:01:30]} 21. Bxd5 {[%emt 0:00:00]} Qxd5 {[%emt 0:00:00]} 22. Rc1 {[%emt 0:00:00]} Be6 {[%emt 0:04:00]} 23. Ne4 {[%emt 0:03:30]} Qd8 {[%emt 0:05:30]} 24. Qc5 {[%emt 0:03:30]} Nf4 {[%emt 0:06:30]} 25. Ne5 {[%emt 0:04:30]} Bd5 {[%emt 0:05:30]} 26. Rb1 {[%emt 0:03:30]} f6 {[%emt 0:08:30]} 27. Nf3 {[%emt 0:01:30]} Qd7 {[%emt 0:03:30]} 1/2-1/2

[Event "7th Cesme Open-A 2019"]
[Site "Cesme"]
[Date "2019.06.25"]
[Round "2"]
[White "Guliev, Logman"]
[Black "Unat, Can Haktan"]
[Result "0-1"]
[ECO "B66"]
[WhiteElo "2320"]
[BlackElo "2079"]
[Annotator "ChessBase"]
[PlyCount "112"]
[EventDate "2019.06.24"]
[EventType "swiss"]
[EventCountry "TUR"]
[SourceTitle "playchess.com"]
[Source "ChessBase"]
[SourceQuality "1"]
[TimeControl "5400+30"]

1. e4 {[%emt 0:02:30]} c5 {[%emt 0:04:30]} 2. Nf3 {[%emt 0:00:30]} d6 {[%emt 0:00:30]} 3. d4 {[%emt 0:00:00]} cxd4 {[%emt 0:00:30]} 4. Nxd4 {[%emt 0:00:00]} Nf6 {[%emt 0:00:00]} 5. Nc3 {[%emt 0:00:30]} Nc6 {[%emt 0:00:00]} 6. Bg5 {[%emt 0:00:30]} e6 {[%emt 0:00:00]} 7. Qd2 {[%emt 0:00:00]} a6 {[%emt 0:00:00]} 8. O-O-O {[%emt 0:00:00]} Bd7 {[%emt 0:00:00]} 9. f3 {[%emt 0:00:00]} h6 {[%emt 0:00:00]} 10. Be3 {[%emt 0:00:00]} h5 {[%emt 0:00:00]} 11. Kb1 {[%emt 0:01:30]} b5 {[%emt 0:02:00]} 12. Nxc6 {[%emt 0:01:30]} Bxc6 {[%emt 0:00:30]} 13. Ne2 {[%emt 0:00:00]} Be7 {[%emt 0:03:30]} 14. Nd4 {[%emt 0:00:00]} Bb7 {[%emt 0:00:30]} 15. Bg5 {[%emt 0:01:30]} Nxe4 {[%emt 0:00:30]} 16. fxe4 {[%emt 0:01:30]} Bxg5 {[%emt 0:00:30]} 17. Qe1 {[%emt 0:08:30]} Bf6 {[%emt 0:02:30]} 18. Nf3 {[%emt 0:02:30]} Qc7 {[%emt 0:02:30]} 19. Bd3 {[%emt 0:00:30]} Rc8 {[%emt 0:01:30]} 20. Qg3 {[%emt 0:00:30]} Qc5 {[%emt 0:06:30]} 21. c3 {[%emt 0:01:30]} b4 {[%emt 0:06:30]} 22. c4 {[%emt 0:00:30]} h4 {[%emt 0:01:30]} 23. Qf4 {[%emt 0:01:30]} a5 {[%emt 0:08:30]} 24. g4 {[%emt 0:05:30]} Be5 {[%emt 0:11:30]} 25. Qg5 {[%emt 0:06:30]} Bd4 {[%emt 0:00:30]} 26. Qd2 {[%emt 0:02:30]} Be3 {[%emt 0:00:30]} 27. Qe2 {[%emt 0:09:30]} g5 {[%emt 0:02:30]} 28. Rhf1 {[%emt 0:18:30]} a4 {[%emt 0:02:30]} 29. Rde1 {[%emt 0:11:30]} Bf4 {[%emt 0:01:30]} 30. Qc2 {[%emt 0:00:30]} Bc6 {[%emt 0:03:30]} 31. Qe2 {[%emt 0:01:30]} Ke7 {[%emt 0:05:30]} 32. Rd1 {[%emt 0:04:30]} f6 {[%emt 0:07:30]} 33. Rde1 {[%emt 0:00:31]} Bd7 {[%emt 0:01:30]} 34. Qd1 {[%emt 0:03:47]} Rc7 {[%emt 0:04:30]} 35. Qe2 {[%emt 0:00:14]} Bc8 {[%emt 0:04:59]} 36. Qf2 {[%emt 0:05:24]} Ba6 {[%emt 0:03:52]} 37. b3 {[%emt 0:00:32]} a3 {[%emt 0:04:06]} 38. Qe2 {[%emt 0:00:59]} Bb7 {[%emt 0:01:49]} 39. Bc2 {[%emt 0:01:23]} Ra8 {[%emt 0:01:52]} 40. Bd3 {[%emt 0:00:53]} Rh8 {[%emt 0:00:34]} 41. Bc2 {[%emt 0:00:57]} Bc6 {[%emt 0:00:29]} 42. Qd1 {[%emt 0:00:47]} Bxh2 {[%emt 0:01:27]} 43. Nxh2 {[%emt 0:03:33]} Qe5 {[%emt 0:06:54]} 44. Qc1 {[%emt 0:05:48]} Qxh2 {[%emt 0:00:30]} 45. e5 {[%emt 0:00:30]} dxe5 {[%emt 0:00:30]} 46. Qe3 {[%emt 0:00:30]} e4 {[%emt 0:00:30]} 47. Qb6 {[%emt 0:00:30]} Qd6 {[%emt 0:00:30]} 48. Rd1 {[%emt 0:00:30]} Rb7 {[%emt 0:00:00]} 49. Rxd6 {[%emt 0:00:40]} Rxb6 {[%emt 0:00:30]} 50. c5 {[%emt 0:00:30]} Rc8 {[%emt 0:00:30]} 51. Re1 {[%emt 0:00:30]} Rb5 {[%emt 0:00:30]} 52. Rd4 {[%emt 0:00:30]} f5 {[%emt 0:00:30]} 53. gxf5 {[%emt 0:00:30]} exf5 {[%emt 0:00:30]} 54. Bd3 {[%emt 0:00:30]} Rxc5 {[%emt 0:00:30]} 55. Rxb4 {[%emt 0:00:30]} h3 {[%emt 0:00:30]} 56. Ba6 {[%emt 0:00:30]} Rd8 {[%emt 0:00:30]} 0-1

[Event "7th Cesme Open-A 2019"]
[Site "Cesme"]
[Date "2019.06.25"]
[Round "2"]
[White "Kazimova, Narmin"]
[Black "Erdogdu, Mert"]
[Result "0-1"]
[ECO "E63"]
[WhiteElo "2271"]
[BlackElo "2391"]
[Annotator "RC"]
[PlyCount "106"]
[EventDate "2019.06.24"]
[EventType "swiss"]
[EventCountry "TUR"]
[SourceTitle "playchess.com"]
[Source "ChessBase"]
[SourceQuality "1"]
[TimeControl "5400+30"]

1. d4 {[%emt 0:00:30]} Nf6 {[%emt 0:04:30]} 2. c4 {[%emt 0:00:00]} g6 {[%emt 0:00:30]} 3. Nf3 {[%emt 0:00:00]} Bg7 {[%emt 0:00:30]} 4. g3 {[%emt 0:00:30]} O-O {[%emt 0:00:00]} 5. Bg2 {[%emt 0:00:30]} d6 {[%emt 0:00:00]} 6. O-O {[%emt 0:00:00]} Nc6 {[%emt 0:00:00]} 7. Nc3 {[%emt 0:00:00]} a6 {[%emt 0:00:00]} 8. Re1 {[%emt 0:00:00]} Bd7 {[%emt 0:00:30]} 9. e4 {[%emt 0:03:00]} e5 {[%emt 0:05:30]} 10. d5 {[%emt 0:01:30]} Ne7 {[%emt 0:04:30]} 11. Bd2 {[%emt 0:09:30]} Ne8 {[%emt 0:01:30]} 12. b4 {[%emt 0:05:30]} h6 {[%emt 0:06:30]} 13. c5 {[%emt 0:11:30]} f5 {[%emt 0:00:30]} 14. Qb3 {[%emt 0:05:30]} Kh7 {[%emt 0:03:30]} 15. exf5 {[%emt 0:02:30]} gxf5 {[%emt 0:01:30]} 16. Be3 {[%emt 0:06:30]} Ng6 {[%emt 0:11:30]} 17. Rad1 {[%emt 0:03:30]} Nf6 {[%emt 0:10:30]} 18. Bc1 {[%emt 0:11:30]} Rb8 {[%emt 0:16:30]} 19. a4 {[%emt 0:04:30]} Kh8 {[%emt 0:05:30]} 20. Nd2 {[%emt 0:09:30]} b6 {[%emt 0:06:30]} 21. c6 {[%emt 0:09:42]} Bc8 {[%emt 0:00:30]} 22. b5 {[%emt 0:00:25]} axb5 {[%emt 0:01:24]} 23. axb5 {[%emt 0:00:58]} Nh7 {[%emt 0:03:01]} 24. Bb2 {[%emt 0:05:12]} h5 {[%emt 0:00:39]} 25. Ra1 {[%emt 0:03:58]} h4 {[%emt 0:00:19]} 26. Ra7 {[%emt 0:01:00]} Ng5 {[%emt 0:03:10]} 27. Qd1 {[%emt 0:02:14]} Bh6 {[%emt 0:06:15]} 28. Qh5 {[%emt 0:00:13]} Kh7 {[%emt 0:00:39]} 29. Nf3 {[%emt 0:01:14]} Nxf3+ {[%emt 0:01:51]} 30. Bxf3 {[%emt 0:00:02]} Kg7 {[%emt 0:01:03]} 31. Bg2 {[%emt 0:01:18]} Rh8 {[%emt 0:02:01]} 32. Qd1 {[%emt 0:00:30]} hxg3 {[%emt 0:00:35]} 33. hxg3 {[%emt 0:01:33]} Kg8 {[%emt 0:00:36]} 34. Qc2 {[%emt 0:01:26]} Rh7 {[%emt 0:00:17]} 35. Rea1 {[%emt 0:00:45]} Rf7 {[%emt 0:01:54]} 36. Ra8 {[%emt 0:00:36]} Rxa8 {[%emt 0:00:30]} 37. Rxa8 {[%emt 0:00:30]} Rf8 {[%emt 0:00:00]} 38. Ne2 {[%emt 0:00:45]} Qe7 {[%emt 0:00:42]} 39. Rxc8 {[%emt 0:00:50]} Rxc8 {[%emt 0:00:30]} 40. Qxf5 {[%emt 0:00:30]} Qe8 {[%emt 0:00:30]} 41. Bh3 {[%emt 0:00:30]} Ra8 {[%emt 0:00:30]} 42. Qh5 {[%emt 0:00:14]} Kg7 {[%emt 0:00:57]} 43. Nc3 {[%emt 0:00:01]} Nf8 {[%emt 0:01:20]} 44. Qh4 {[%emt 0:01:02]} Qg6 {[%emt 0:00:48]} 45. Ne4 {[%emt 0:00:19]} Ra4 {[%emt 0:02:05]} 46. Qe7+ {[%emt 0:00:12]} Kh8 {[%emt 0:00:00]} 47. Nf6 {[%emt 0:00:45]} Rb4 {[%emt 0:00:39]} 48. Bc3 {[%emt 0:00:29]} Rb1+ {[%emt 0:00:43]} 49. Kg2 {[%emt 0:00:30]} Bg7 {[%emt 0:00:14]} 50. Bxe5 {[%emt 0:01:03]} dxe5 {[%emt 0:00:30]} 51. d6 {[%emt 0:00:30]} cxd6 {[%emt 0:00:30]} 52. c7 {[%emt 0:00:30]} Rc1 {[%emt 0:00:30]} 53. Bd7 {[%emt 0:00:30]} Rxc7 {[%emt 0:00:00]} 0-1

[Event "7th Cesme Open-A 2019"]
[Site "Cesme"]
[Date "2019.06.25"]
[Round "2"]
[White "Ozates, Tuna"]
[Black "Koksal, Ege"]
[Result "0-1"]
[ECO "A11"]
[WhiteElo "2214"]
[BlackElo "2363"]
[Annotator "ChessBase"]
[PlyCount "112"]
[EventDate "2019.06.24"]
[EventType "swiss"]
[EventCountry "TUR"]
[SourceTitle "playchess.com"]
[Source "ChessBase"]
[SourceQuality "1"]
[TimeControl "5400+30"]

1. c4 {[%emt 0:03:30]} c6 {[%emt 0:11:30]} 2. Nf3 {[%emt 0:00:30]} d5 {[%emt 0:00:00]} 3. e3 {[%emt 0:00:00]} Nf6 {[%emt 0:00:00]} 4. Qc2 {[%emt 0:00:00]} g6 {[%emt 0:02:30]} 5. b3 {[%emt 0:01:30]} Bg7 {[%emt 0:00:30]} 6. Bb2 {[%emt 0:00:00]} O-O {[%emt 0:00:00]} 7. Be2 {[%emt 0:00:00]} Bf5 {[%emt 0:01:00]} 8. d3 {[%emt 0:01:30]} Na6 {[%emt 0:00:30]} 9. a3 {[%emt 0:04:30]} dxc4 {[%emt 0:05:30]} 10. bxc4 {[%emt 0:00:30]} Nc5 {[%emt 0:00:30]} 11. e4 {[%emt 0:00:30]} Bg4 {[%emt 0:02:30]} 12. Nbd2 {[%emt 0:00:30]} Ne6 {[%emt 0:04:30]} 13. h3 {[%emt 0:03:30]} Bxf3 {[%emt 0:01:30]} 14. Nxf3 {[%emt 0:00:30]} c5 {[%emt 0:01:30]} 15. O-O {[%emt 0:03:30]} Nh5 {[%emt 0:01:30]} 16. g3 {[%emt 0:03:30]} Bxb2 {[%emt 0:02:30]} 17. Qxb2 {[%emt 0:00:00]} Qc7 {[%emt 0:00:30]} 18. Kg2 {[%emt 0:23:00]} Rfd8 {[%emt 0:02:30]} 19. Qd2 {[%emt 0:00:30]} Nf6 {[%emt 0:04:30]} 20. Qh6 {[%emt 0:02:30]} Nd4 {[%emt 0:00:30]} 21. Nxd4 {[%emt 0:00:30]} Rxd4 {[%emt 0:00:00]} 22. h4 {[%emt 0:00:00]} Qe5 {[%emt 0:04:00]} 23. Rab1 {[%emt 0:03:00]} b6 {[%emt 0:03:30]} 24. Rh1 {[%emt 0:00:30]} Nd7 {[%emt 0:07:30]} 25. h5 {[%emt 0:01:30]} g5 {[%emt 0:00:30]} 26. f4 {[%emt 0:00:30]} gxf4 {[%emt 0:01:30]} 27. gxf4 {[%emt 0:00:30]} Rd6 {[%emt 0:04:30]} 28. fxe5 {[%emt 0:19:30]} Rxh6 {[%emt 0:00:30]} 29. e6 {[%emt 0:00:00]} Rxe6 {[%emt 0:02:30]} 30. Bg4 {[%emt 0:00:00]} Rd6 {[%emt 0:00:30]} 31. Bxd7 {[%emt 0:00:30]} Rxd7 {[%emt 0:00:00]} 32. Rh3 {[%emt 0:00:00]} Rad8 {[%emt 0:00:00]} 33. Rb3 {[%emt 0:00:00]} f6 {[%emt 0:02:30]} 34. Kf2 {[%emt 0:02:30]} Kg7 {[%emt 0:00:30]} 35. Ke2 {[%emt 0:01:30]} Rg8 {[%emt 0:00:30]} 36. h6+ {[%emt 0:06:30]} Kf7 {[%emt 0:00:30]} 37. a4 {[%emt 0:01:30]} Rg2+ {[%emt 0:01:30]} 38. Kf3 {[%emt 0:00:55]} Rg5 {[%emt 0:00:30]} 39. Kf4 {[%emt 0:04:39]} Kg6 {[%emt 0:02:30]} 40. Rb1 {[%emt 0:02:13]} Rd6 {[%emt 0:03:30]} 41. a5 {[%emt 0:03:11]} Rh5 {[%emt 0:05:30]} 42. Rg1+ {[%emt 0:03:01]} Rg5 {[%emt 0:02:30]} 43. Ra1 {[%emt 0:00:29]} Rh5 {[%emt 0:13:57]} 44. Rg1+ {[%emt 0:00:30]} Kxh6 {[%emt 0:00:00]} 45. Rxh5+ {[%emt 0:00:00]} Kxh5 {[%emt 0:00:12]} 46. Rg7 {[%emt 0:00:39]} Rd7 {[%emt 0:01:46]} 47. Rxh7+ {[%emt 0:00:30]} Kg6 {[%emt 0:00:30]} 48. Rh3 {[%emt 0:02:09]} bxa5 {[%emt 0:00:30]} 49. Ke3 {[%emt 0:00:00]} Rd6 {[%emt 0:00:43]} 50. Rg3+ {[%emt 0:03:27]} Kf7 {[%emt 0:00:13]} 51. Rg1 {[%emt 0:00:13]} Ke6 {[%emt 0:01:34]} 52. Ra1 {[%emt 0:03:04]} Ra6 {[%emt 0:00:03]} 53. d4 {[%emt 0:00:08]} a4 {[%emt 0:00:24]} 54. dxc5 {[%emt 0:00:36]} Kd7 {[%emt 0:00:20]} 55. Kd4 {[%emt 0:02:36]} Kc6 {[%emt 0:00:35]} 56. Kc3 {[%emt 0:00:30]} Kxc5 {[%emt 0:00:30]} 0-1

[Event "7th Cesme Open-A 2019"]
[Site "Cesme"]
[Date "2019.06.25"]
[Round "2"]
[White "Can, Melih Kaan"]
[Black "Bashirli, Nail"]
[Result "1/2-1/2"]
[ECO "D00"]
[WhiteElo "2204"]
[BlackElo "2367"]
[Annotator "ChessBase"]
[PlyCount "101"]
[EventDate "2019.06.24"]
[EventType "swiss"]
[EventCountry "TUR"]
[SourceTitle "playchess.com"]
[Source "ChessBase"]
[SourceQuality "1"]
[TimeControl "5400+30"]

1. d4 {[%emt 0:09:30]} Nf6 {[%emt 0:00:30]} 2. Bf4 {[%emt 0:00:30]} d5 {[%emt 0:00:00]} 3. e3 {[%emt 0:00:30]} c5 {[%emt 0:00:00]} 4. c3 {[%emt 0:01:30]} e6 {[%emt 0:00:30]} 5. Nd2 {[%emt 0:00:00]} Bd6 {[%emt 0:00:30]} 6. Bxd6 {[%emt 0:00:00]} Qxd6 {[%emt 0:00:00]} 7. f4 {[%emt 0:00:30]} O-O {[%emt 0:00:00]} 8. Bd3 {[%emt 0:00:30]} Nc6 {[%emt 0:00:30]} 9. Ngf3 {[%emt 0:01:30]} c4 {[%emt 0:00:30]} 10. Bc2 {[%emt 0:01:30]} b5 {[%emt 0:00:30]} 11. a3 {[%emt 0:04:30]} a5 {[%emt 0:00:30]} 12. Ne5 {[%emt 0:01:30]} Ne7 {[%emt 0:00:30]} 13. O-O {[%emt 0:01:30]} Bb7 {[%emt 0:00:30]} 14. Qf3 {[%emt 0:01:30]} g6 {[%emt 0:05:30]} 15. g4 {[%emt 0:02:30]} Nd7 {[%emt 0:13:30]} 16. Qh3 {[%emt 0:16:30]} f6 {[%emt 0:03:30]} 17. Nxd7 {[%emt 0:00:30]} Qxd7 {[%emt 0:00:00]} 18. Nf3 {[%emt 0:00:30]} Ra7 {[%emt 0:13:00]} 19. g5 {[%emt 0:02:30]} fxg5 {[%emt 0:00:30]} 20. Ne5 {[%emt 0:03:30]} Qd6 {[%emt 0:03:30]} 21. fxg5 {[%emt 0:00:30]} Nf5 {[%emt 0:04:30]} 22. Bxf5 {[%emt 0:07:30]} exf5 {[%emt 0:01:30]} 23. Qg3 {[%emt 0:01:30]} Bc8 {[%emt 0:00:30]} 24. Qf4 {[%emt 0:00:30]} Re7 {[%emt 0:03:30]} 25. h4 {[%emt 0:03:30]} Re6 {[%emt 0:05:30]} 26. Kf2 {[%emt 0:00:30]} Bd7 {[%emt 0:02:30]} 27. Kg3 {[%emt 0:05:30]} Rfe8 {[%emt 0:08:30]} 28. h5 {[%emt 0:03:30]} Rxe5 {[%emt 0:04:30]} 29. dxe5 {[%emt 0:00:30]} Rxe5 {[%emt 0:00:30]} 30. hxg6 {[%emt 0:14:10]} Rxe3+ {[%emt 0:05:30]} 31. Rf3 {[%emt 0:00:06]} Qxf4+ {[%emt 0:00:00]} 32. Kxf4 {[%emt 0:00:06]} Re4+ {[%emt 0:00:00]} 33. Kg3 {[%emt 0:00:02]} hxg6 {[%emt 0:00:30]} 34. Kf2 {[%emt 0:06:25]} d4 {[%emt 0:03:30]} 35. cxd4 {[%emt 0:00:25]} f4 {[%emt 0:04:00]} 36. Rc3 {[%emt 0:05:14]} Rxd4 {[%emt 0:00:36]} 37. Re1 {[%emt 0:00:45]} Bg4 {[%emt 0:01:01]} 38. Rc2 {[%emt 0:00:42]} b4 {[%emt 0:02:58]} 39. axb4 {[%emt 0:00:56]} axb4 {[%emt 0:01:31]} 40. Re7 {[%emt 0:00:31]} b3 {[%emt 0:03:15]} 41. Rc1 {[%emt 0:00:22]} Rd2+ {[%emt 0:06:06]} 42. Ke1 {[%emt 0:00:05]} Rxb2 {[%emt 0:00:19]} 43. Rxc4 {[%emt 0:00:00]} Rb1+ {[%emt 0:00:08]} 44. Kf2 {[%emt 0:01:07]} Rb2+ {[%emt 0:03:15]} 45. Ke1 {[%emt 0:01:23]} Rb1+ {[%emt 0:03:24]} 46. Kf2 {[%emt 0:00:02]} Kf8 {[%emt 0:00:35]} 47. Rb7 {[%emt 0:02:12]} Rb2+ {[%emt 0:00:10]} 48. Ke1 {[%emt 0:00:50]} Rb1+ {[%emt 0:00:21]} 49. Kf2 {[%emt 0:01:25]} Rb2+ {[%emt 0:01:23]} 50. Ke1 {[%emt 0:00:02]} Rb1+ {[%emt 0:00:15]} 51. Kf2 {[%emt 0:02:32]} 1/2-1/2

[Event "7th Cesme Open-A 2019"]
[Site "Cesme"]
[Date "2019.06.25"]
[Round "2"]
[White "Mohannad, Farhan"]
[Black "Kamer, Kayra"]
[Result "1/2-1/2"]
[ECO "E92"]
[WhiteElo "2193"]
[BlackElo "2353"]
[Annotator "ChessBase"]
[PlyCount "241"]
[EventDate "2019.06.24"]
[EventType "swiss"]
[EventCountry "TUR"]
[SourceTitle "playchess.com"]
[Source "ChessBase"]
[SourceQuality "1"]
[TimeControl "5400+30"]

1. d4 {[%emt 0:00:30]} Nf6 {[%emt 0:00:30]} 2. c4 {[%emt 0:00:00]} g6 {[%emt 0:00:30]} 3. Nc3 {[%emt 0:00:00]} Bg7 {[%emt 0:00:00]} 4. e4 {[%emt 0:00:30]} d6 {[%emt 0:00:00]} 5. Nf3 {[%emt 0:00:00]} O-O {[%emt 0:00:30]} 6. Be2 {[%emt 0:00:00]} e5 {[%emt 0:00:30]} 7. d5 {[%emt 0:00:00]} a5 {[%emt 0:00:30]} 8. O-O {[%emt 0:00:00]} Na6 {[%emt 0:00:30]} 9. Bg5 {[%emt 0:00:30]} h6 {[%emt 0:00:30]} 10. Bh4 {[%emt 0:00:00]} Qe8 {[%emt 0:00:30]} 11. Nd2 {[%emt 0:00:00]} Bd7 {[%emt 0:02:30]} 12. b3 {[%emt 0:00:30]} Nh7 {[%emt 0:00:30]} 13. a3 {[%emt 0:00:30]} h5 {[%emt 0:01:30]} 14. f3 {[%emt 0:00:30]} Bh6 {[%emt 0:03:30]} 15. Rb1 {[%emt 0:00:30]} f5 {[%emt 0:01:30]} 16. exf5 {[%emt 0:02:30]} gxf5 {[%emt 0:00:30]} 17. b4 {[%emt 0:10:30]} axb4 {[%emt 0:00:30]} 18. axb4 {[%emt 0:00:00]} Qg6 {[%emt 0:00:30]} 19. Kh1 {[%emt 0:05:00]} Kh8 {[%emt 0:01:30]} 20. Bf2 {[%emt 0:00:00]} Rg8 {[%emt 0:02:30]} 21. Rg1 {[%emt 0:00:00]} Nf6 {[%emt 0:00:30]} 22. c5 {[%emt 0:02:30]} h4 {[%emt 0:00:30]} 23. c6 {[%emt 0:01:30]} bxc6 {[%emt 0:00:30]} 24. dxc6 {[%emt 0:00:00]} Be6 {[%emt 0:00:30]} 25. Nf1 {[%emt 0:08:00]} Nh5 {[%emt 0:03:30]} 26. Bxh4 {[%emt 0:01:30]} Nf4 {[%emt 0:00:30]} 27. Bg3 {[%emt 0:00:00]} Nxe2 {[%emt 0:01:30]} 28. Qxe2 {[%emt 0:01:00]} Qf7 {[%emt 0:02:30]} 29. Bf2 {[%emt 0:05:30]} Bc4 {[%emt 0:00:30]} 30. Qd1 {[%emt 0:02:30]} Rad8 {[%emt 0:06:30]} 31. Qe1 {[%emt 0:12:30]} Bd3 {[%emt 0:01:30]} 32. Rb2 {[%emt 0:00:30]} Qc4 {[%emt 0:02:30]} 33. b5 {[%emt 0:14:30]} Nc5 {[%emt 0:00:30]} 34. Ne3 {[%emt 0:00:30]} Qf7 {[%emt 0:03:30]} 35. Ned5 {[%emt 0:00:30]} Na4 {[%emt 0:05:30]} 36. Rb4 {[%emt 0:05:30]} Nxc3 {[%emt 0:00:30]} 37. Nxc3 {[%emt 0:00:00]} Rg7 {[%emt 0:02:30]} 38. Rh4 {[%emt 0:03:00]} Rh7 {[%emt 0:00:30]} 39. b6 {[%emt 0:05:30]} cxb6 {[%emt 0:00:00]} 40. Bxb6 {[%emt 0:00:00]} Rg8 {[%emt 0:02:00]} 41. c7 {[%emt 0:03:00]} Qb3 {[%emt 0:02:30]} 42. Ba7 {[%emt 0:00:30]} Qe6 {[%emt 0:03:30]} 43. Bb8 {[%emt 0:05:54]} Ba6 {[%emt 0:00:30]} 44. Rh5 {[%emt 0:02:12]} Bb7 {[%emt 0:07:30]} 45. Qb1 {[%emt 0:04:10]} Bc8 {[%emt 0:02:30]} 46. Qd3 {[%emt 0:02:02]} Qg6 {[%emt 0:00:30]} 47. Rh3 {[%emt 0:00:39]} Bb7 {[%emt 0:09:30]} 48. Ne2 {[%emt 0:02:14]} e4 {[%emt 0:02:30]} 49. Qb3 {[%emt 0:00:45]} Bc8 {[%emt 0:12:02]} 50. Rg3 {[%emt 0:00:54]} Qf7 {[%emt 0:01:21]} 51. Qxf7 {[%emt 0:01:32]} Rxf7 {[%emt 0:00:05]} 52. Rh3 {[%emt 0:01:17]} Kg7 {[%emt 0:01:28]} 53. Rd1 {[%emt 0:00:25]} f4 {[%emt 0:03:04]} 54. fxe4 {[%emt 0:01:29]} Bxh3 {[%emt 0:01:22]} 55. gxh3 {[%emt 0:00:03]} Kh7 {[%emt 0:01:12]} 56. Rg1 {[%emt 0:03:21]} f3 {[%emt 0:00:27]} 57. Ng3 {[%emt 0:00:45]} Bd2 {[%emt 0:02:18]} 58. Rf1 {[%emt 0:00:16]} Ba5 {[%emt 0:00:47]} 59. Rc1 {[%emt 0:00:42]} Rc8 {[%emt 0:01:43]} 60. Kg1 {[%emt 0:00:40]} Bxc7 {[%emt 0:03:18]} 61. Bxc7 {[%emt 0:00:09]} Rcxc7 {[%emt 0:00:34]} 62. Rxc7 {[%emt 0:00:30]} Rxc7 {[%emt 0:00:30]} 63. Kf2 {[%emt 0:00:00]} Kg6 {[%emt 0:02:51]} 64. Kxf3 {[%emt 0:00:00]} Kf6 {[%emt 0:00:34]} 65. Kf4 {[%emt 0:00:16]} Rc4 {[%emt 0:00:38]} 66. Ke3 {[%emt 0:00:47]} Ke5 {[%emt 0:00:12]} 67. Kf3 {[%emt 0:00:23]} Rc3+ {[%emt 0:00:45]} 68. Kg4 {[%emt 0:00:39]} Rc2 {[%emt 0:00:36]} 69. h4 {[%emt 0:00:30]} Rxh2 {[%emt 0:00:30]} 70. h5 {[%emt 0:00:00]} Kf6 {[%emt 0:00:51]} 71. Kf4 {[%emt 0:00:02]} Rh4+ {[%emt 0:00:12]} 72. Kf3 {[%emt 0:00:10]} Ke5 {[%emt 0:00:26]} 73. Ke3 {[%emt 0:00:19]} Rg4 {[%emt 0:01:10]} 74. Kf3 {[%emt 0:00:07]} Rg8 {[%emt 0:00:00]} 75. Ne2 {[%emt 0:00:26]} Rf8+ {[%emt 0:00:51]} 76. Ke3 {[%emt 0:00:11]} Ra8 {[%emt 0:00:00]} 77. Nf4 {[%emt 0:01:27]} Ra4 {[%emt 0:01:29]} 78. Nd3+ {[%emt 0:00:08]} Kf6 {[%emt 0:00:00]} 79. Nb2 {[%emt 0:01:23]} Ra2 {[%emt 0:02:09]} 80. Nc4 {[%emt 0:00:21]} Ke6 {[%emt 0:00:16]} 81. Kf4 {[%emt 0:00:14]} Rc2 {[%emt 0:01:06]} 82. Ne3 {[%emt 0:00:39]} Rh2 {[%emt 0:00:08]} 83. Kg5 {[%emt 0:00:00]} Re2 {[%emt 0:00:34]} 84. Kf4 {[%emt 0:00:03]} Rf2+ {[%emt 0:00:41]} 85. Kg5 {[%emt 0:00:07]} Re2 {[%emt 0:00:52]} 86. Kf4 {[%emt 0:00:30]} Rh2 {[%emt 0:00:00]} 87. Kg5 {[%emt 0:00:00]} Rh1 {[%emt 0:00:24]} 88. h6 {[%emt 0:00:39]} Rh3 {[%emt 0:01:04]} 89. Ng4 {[%emt 0:00:53]} Rh1 {[%emt 0:00:18]} 90. Kg6 {[%emt 0:00:03]} Rg1 {[%emt 0:00:28]} 91. Kg5 {[%emt 0:00:24]} Kf7 {[%emt 0:00:09]} 92. Kf5 {[%emt 0:00:43]} Rf1+ {[%emt 0:00:30]} 93. Kg5 {[%emt 0:00:00]} Ra1 {[%emt 0:00:00]} 94. Ne3 {[%emt 0:00:21]} Rg1+ {[%emt 0:00:39]} 95. Ng4 {[%emt 0:00:16]} Re1 {[%emt 0:00:57]} 96. Kf5 {[%emt 0:00:17]} Rb1 {[%emt 0:00:18]} 97. Ne3 {[%emt 0:01:06]} Rb5+ {[%emt 0:00:43]} 98. Nd5 {[%emt 0:00:12]} Rb3 {[%emt 0:00:18]} 99. Nf4 {[%emt 0:01:13]} Rf3 {[%emt 0:00:40]} 100. Kg5 {[%emt 0:00:12]} Rg3+ {[%emt 0:00:54]} 101. Kf5 {[%emt 0:00:05]} Rg8 {[%emt 0:00:49]} 102. e5 {[%emt 0:00:55]} dxe5 {[%emt 0:00:32]} 103. Kxe5 {[%emt 0:00:30]} Rh8 {[%emt 0:00:00]} 104. Kf5 {[%emt 0:00:15]} Rxh6 {[%emt 0:00:00]} 105. Kg5 {[%emt 0:00:17]} Rf6 {[%emt 0:00:00]} 106. Nh5 {[%emt 0:00:15]} Ra6 {[%emt 0:00:00]} 107. Kf5 {[%emt 0:00:17]} Ra5+ {[%emt 0:00:19]} 108. Kg4 {[%emt 0:00:00]} Rb5 {[%emt 0:00:02]} 109. Nf4 {[%emt 0:00:18]} Kf6 {[%emt 0:00:00]} 110. Nh5+ {[%emt 0:00:16]} Ke5 {[%emt 0:00:00]} 111. Kg5 {[%emt 0:00:03]} Ra5 {[%emt 0:00:02]} 112. Kg4 {[%emt 0:00:28]} Ra8 {[%emt 0:00:48]} 113. Kf3 {[%emt 0:00:19]} Ra3+ {[%emt 0:00:22]} 114. Kg4 {[%emt 0:00:30]} Ra4+ {[%emt 0:00:00]} 115. Kg5 {[%emt 0:00:11]} Rb4 {[%emt 0:00:00]} 116. Nf6 {[%emt 0:00:23]} Ke6 {[%emt 0:00:15]} 117. Ng4 {[%emt 0:00:47]} Re4 {[%emt 0:00:09]} 118. Nf2 {[%emt 0:00:00]} Re1 {[%emt 0:00:53]} 119. Kf4 {[%emt 0:00:42]} Rf1 {[%emt 0:00:30]} 120. Ke3 {[%emt 0:00:30]} Rxf2 {[%emt 0:00:00]} 121. Ke4 {[%emt 0:00:00]} 1/2-1/2